bitfinex-derivatives/quotes_ETHF0:USTF0_20230403
["timestamp","ask_amount","ask_price","bid_price","bid_amount"]
[1680521362989,2.86322036,1804.7,1804.6,0.58104986]
[1680521363694,5.20420034,1804.7,1804.6,0.58104986]
[1680521364192,0.99640034,1804.7,1804.6,0.58104986]
[1680521364391,1.86342429,1804.7,1804.6,0.58104986]
[1680521365297,2.86342429,1804.7,1804.6,0.58104986]
[1680521366096,1.99640034,1804.7,1804.6,0.58104986]
[1680521366397,0.99640034,1804.7,1804.6,0.58104986]
[1680521366802,1.86339654,1804.7,1804.6,0.58104986]
[1680521369703,2.86339654,1804.7,1804.6,0.58104986]
[1680521369897,1.86339654,1804.7,1804.6,0.58104986]
[1680521370096,2.86339654,1804.7,1804.6,0.58104986]
[1680521370293,1.86339654,1804.7,1804.6,0.58104986]
[1680521372006,5.07119654,1804.7,1804.6,0.58104986]
[1680521372302,6.07119654,1804.7,1804.6,0.58104986]
[1680521372807,5.07119654,1804.7,1804.6,0.58104986]
[1680521378215,1.86339654,1804.7,1804.6,0.58104986]
[1680521382018,1.61723451,1804.7,1804.6,2.282478]
[1680521382218,1.61723451,1804.7,1804.6,1.70142814]
[1680521382219,0.75023831,1804.7,1804.6,1.70142814]
[1680521385825,1.61723451,1804.7,1804.6,1.70142814]
[1680521386327,0.75023831,1804.7,1804.6,1.70142814]
[1680521386522,1.61723451,1804.7,1804.6,1.70142814]
[1680521387025,0.75023831,1804.7,1804.6,1.70142814]
[1680521397032,1.61723451,1804.7,1804.6,1.70142814]
[1680521397236,0.75023831,1804.7,1804.6,1.70142814]
[1680521397731,1.61723451,1804.7,1804.6,1.70142814]
[1680521399134,1.61749571,1804.7,1804.6,1.70142814]
[1680521399524,0.75049951,1804.7,1804.6,1.70142814]
[1680521399727,1.61749571,1804.7,1804.6,1.70142814]
[1680521400124,0.75049951,1804.7,1804.6,1.70142814]
[1680521400538,1.61753249,1804.7,1804.6,1.70142814]
[1680521400738,1.03939654,1804.7,1804.6,1.70142814]
[1680521401836,1.03939654,1804.7,1804.6,2.98997045]
[1680521401837,0.75054301,1804.7,1804.6,2.98997045]
[1680521402031,0.75054301,1804.7,1804.6,2.98797045]
[1680521404239,0.75054301,1804.7,1804.6,1.98797045]
[1680521405937,0.75054301,1804.7,1804.6,2.98797045]
[1680521406136,0.75054301,1804.7,1804.6,1.98797045]
[1680521408339,0.75054301,1804.7,1804.6,1.15997045]
[1680521409246,0.57814267,1804.7,1804.6,1.15997045]
[1680521409845,0.72863139,1804.7,1804.6,1.15997045]
[1680521410541,0.57814267,1804.7,1804.6,1.15997045]
[1680521411150,0.7286267,1804.7,1804.6,1.15997045]
[1680521411844,0.57814267,1804.7,1804.6,1.15997045]
[1680521412044,0.72862306,1804.7,1804.6,1.15997045]
[1680521412852,0.57814267,1804.7,1804.6,1.15997045]
[1680521413253,0.72888184,1804.7,1804.6,1.15997045]
[1680521413753,0.57814267,1804.7,1804.6,1.15997045]
[1680521414251,0.72887832,1804.7,1804.6,1.15997045]
[1680521414840,0.57814267,1804.7,1804.6,1.15997045]
[1680521415039,0.57814267,1804.7,1804.6,1.98797045]
[1680521415246,0.57814267,1804.7,1804.6,2.98797045]
[1680521415644,0.57814267,1804.7,1804.6,2.67515278]
[1680521415845,0.72852133,1804.7,1804.6,3.67515278]
[1680521416252,0.15037866,1804.7,1804.6,3.67515278]
[1680521416849,0.72852133,1804.7,1804.6,3.67515278]
[1680521417046,0.72852133,1804.7,1804.6,2.98797045]
[1680521417251,0.72852133,1804.7,1804.6,3.6751567]
[1680521417458,0.72852133,1804.7,1804.6,3.67515803]
[1680521417654,0.72852133,1804.7,1804.6,2.98797045]
[1680521418356,0.15037866,1804.7,1804.6,3.67515238]
[1680521418550,1.44513887,1804.8,1804.6,3.67515238]
[1680521418750,1.44513887,1804.8,1804.7,1.69778529]
[1680521418954,1.44513887,1804.8,1804.7,5.90558084]
[1680521420656,0.8669962,1804.8,1804.7,5.90558084]
[1680521421756,0.8669962,1804.8,1804.7,4.90558084]
[1680521424756,0.8669962,1804.8,1804.7,4.91058084]
[1680521424957,0.57807948,1804.9,1804.7,12.53710183]
[1680521425156,0.57807948,1804.9,1804.8,2.67553573]
[1680521425157,0.57538461,1804.9,1804.8,2.67553573]
[1680521425351,1.15587993,1805.1,1804.8,2.67553573]
[1680521425352,0.8669962,1805.1,1804.8,2.96230183]
[1680521425558,0.8669962,1805.1,1805.0,1.70278517]
[1680521425748,0.8669962,1805.1,1805.0,2.70278517]
[1680521425952,0.8669962,1805.1,1805.0,3.28361721]
[1680521426151,0.8669962,1805.2,1805.0,2.70278517]
[1680521426358,0.8669962,1805.2,1805.1,1.5808228]
[1680521426560,0.8669962,1805.2,1805.1,0.5808228]
[1680521426753,0.86677658,1805.2,1805.1,0.5808228]
[1680521426948,0.8667817,1805.2,1805.1,0.5808228]
[1680521427659,0.8667817,1805.2,1805.0,3.51519936]
[1680521429356,0.8667817,1805.2,1805.1,3.2078]
[1680521431362,2.97987993,1805.2,1805.0,0.23159139]
[1680521431664,0.86614725,1805.1,1804.9,1.4118228]
[1680521431862,1.0,1805.0,1804.9,1.4118228]
[1680521432162,1.0,1805.0,1804.9,0.5808228]
[1680521432363,2.69714725,1805.1,1804.9,0.5808228]
[1680521432862,1.69714725,1805.1,1804.9,0.5808228]
[1680521434858,0.86614725,1805.1,1805.0,0.826]
[1680521435061,0.86614725,1805.1,1805.0,1.826]
[1680521435959,0.86614725,1805.1,1805.0,5.0338]
[1680521437260,0.86614725,1805.2,1805.0,5.6146228]
[1680521437463,0.86614725,1805.2,1805.1,0.83]
[1680521437653,0.86614725,1805.2,1805.1,1.83]
[1680521438258,0.86614725,1805.2,1805.1,0.83]
[1680521441266,0.86614725,1805.2,1805.1,0.9420056]
[1680521442558,1.15587993,1805.3,1805.1,0.9420056]
[1680521443365,1.15587993,1805.2,1805.1,0.9420056]
[1680521443568,4.36367993,1805.3,1805.1,0.9420056]
[1680521443769,1.15587993,1805.3,1805.1,0.9420056]
[1680521444171,1.15587993,1805.2,1805.1,0.9420056]
[1680521444475,1.15587993,1805.2,1805.1,0.1120056]
[1680521444673,2.15587993,1805.2,1805.1,0.1120056]
[1680521444873,2.15587993,1805.2,1804.9,1.4118228]
[1680521445174,0.86619461,1805.1,1804.9,1.4118228]
[1680521445367,1.86619461,1805.1,1804.9,1.4118228]
[1680521446572,0.86619461,1805.1,1804.9,1.4118228]
[1680521452174,0.86619461,1805.1,1804.9,0.5808228]
[1680521456281,0.86619461,1805.1,1805.0,0.10280229]
[1680521461089,2.98387993,1805.2,1805.0,0.10280229]
[1680521461385,2.15587993,1805.1,1805.0,0.10280229]
[1680521462983,1.15587993,1805.1,1805.0,0.10280229]
[1680521463181,0.86672725,1805.1,1805.0,0.68362509]
[1680521464383,0.86672725,1805.1,1805.0,1.51462509]
[1680521464590,0.86672725,1805.2,1805.0,5.01338746]
[1680521464784,0.86672725,1805.2,1805.1,1.5808584]
[1680521465585,1.15587993,1805.3,1805.1,1.5808584]
[1680521465991,0.86701257,1805.2,1805.1,1.5808584]
[1680521466592,0.86701257,1805.3,1805.1,3.53378517]
[1680521466798,0.86701257,1805.3,1805.2,4.91058517]
[1680521467091,0.86701257,1805.3,1805.2,5.91058517]
[1680521468491,0.86701257,1805.4,1805.3,0.826]
[1680521468788,0.86701257,1805.4,1805.3,3.23770336]
[1680521469896,1.15587993,1805.5,1805.4,1.0]
[1680521470095,1.15587993,1805.5,1805.4,1.83]
[1680521470596,1.15587993,1805.5,1805.4,0.83]
[1680521471190,1.15587993,1805.5,1805.4,1.078462]
[1680521471390,1.15587993,1805.5,1805.4,0.248462]
[1680521471897,3.82698914,1805.6,1805.3,0.826]
[1680521472092,1.15565806,1805.4,1805.2,0.58070336]
[1680521472291,1.829,1805.5,1805.2,0.58070336]
[1680521472292,0.86674872,1805.3,1805.2,0.58070336]
[1680521472894,1.98465806,1805.5,1805.2,0.58070336]
[1680521472895,0.86674872,1805.4,1805.2,0.58070336]
[1680521481602,0.86674872,1805.4,1805.3,3.2078]
[1680521483601,0.86674872,1805.5,1805.3,3.2078]
[1680521483999,0.86674872,1805.4,1805.3,3.2078]
[1680521484406,0.86674872,1805.5,1805.3,3.2078]
[1680521486307,0.86674872,1805.5,1805.4,0.24853263]
[1680521486502,0.86674872,1805.5,1805.3,3.2078]
[1680521491308,0.86674872,1805.5,1805.4,0.831]
[1680521491506,1.41888496,1805.6,1805.4,1.831]
[1680521495112,0.86674872,1805.6,1805.4,1.831]
[1680521497811,0.86674872,1805.6,1805.4,1.82373817]
[1680521498612,1.69174872,1805.6,1805.3,5.61150336]
[1680521498812,1.69174872,1805.6,1805.3,1.40370336]
[1680521499411,0.86674872,1805.5,1805.3,1.40370336]
[1680521500209,1.69174872,1805.6,1805.3,4.61150336]
[1680521500703,2.69174872,1805.6,1805.3,4.61150336]
[1680521500904,1.69174872,1805.6,1805.3,4.61150336]
[1680521501307,0.86674872,1805.5,1805.4,0.24860224]
[1680521501513,4.90554872,1805.5,1805.4,0.24860224]
[1680521501712,5.19445806,1805.5,1805.2,0.58070336]
[1680521502011,0.8661984,1805.4,1805.2,0.58070336]
[1680521505618,4.0739984,1805.3,1805.2,0.58070336]
[1680521505818,5.0388,1805.3,1805.1,0.58070336]
[1680521506018,0.86658926,1805.2,1805.1,0.58070336]
[1680521506223,2.15565806,1805.2,1805.0,0.58070336]
[1680521506415,0.86654039,1805.1,1805.0,0.58070336]
[1680521507616,1.86654039,1805.2,1805.0,0.58070336]
[1680521507816,0.86654039,1805.1,1805.0,0.58070336]
[1680521508526,0.86654039,1805.1,1804.9,2.28348853]
[1680521509419,0.831,1805.0,1804.9,1.45248853]
[1680521509814,0.831,1805.0,1804.9,0.58070336]
[1680521510326,0.831,1805.0,1804.9,1.45248853]
[1680521510526,0.831,1805.0,1804.9,0.58070336]
[1680521512136,4.89934039,1805.1,1804.9,0.58070336]
[1680521516439,4.0328,1805.1,1804.9,0.58070336]
[1680521517337,0.831,1805.0,1804.7,1.45248853]
[1680521517636,0.829,1804.8,1804.7,0.58070336]
[1680521518035,1.829,1804.8,1804.7,0.58070336]
[1680521520638,0.829,1804.8,1804.7,0.58070336]
[1680521521840,1.829,1804.8,1804.7,0.58070336]
[1680521522035,1.829,1804.8,1804.6,0.58070336]
[1680521522339,1.825,1804.7,1804.6,0.58070336]
[1680521524741,1.825,1804.7,1804.5,1.45248853]
[1680521525536,1.825,1804.7,1804.5,0.58070336]
[1680521526944,0.825,1804.7,1804.5,0.58070336]
[1680521528633,4.0328,1804.7,1804.5,0.58070336]
[1680521531137,0.15166603,1804.6,1804.5,0.58070336]
[1680521531348,1.0,1804.6,1804.5,0.58070336]
[1680521531750,4.0328,1804.7,1804.5,0.58070336]
[1680521532351,0.831,1804.6,1804.4,1.45248853]
[1680521532555,1.831,1804.6,1804.4,1.45248853]
[1680521532847,0.831,1804.6,1804.4,1.45248853]
[1680521533049,0.831,1804.6,1804.4,0.58070336]
[1680521535254,1.665,1804.4,1804.0,0.57912451]
[1680521535553,4.8578,1804.1,1803.9,1.59713101]
[1680521535756,1.661,1804.0,1803.7,1.44917968]
[1680521535955,4.0388,1803.8,1803.5,0.86901861]
[1680521536143,0.831,1803.6,1803.5,0.86901861]
[1680521536547,0.831,1803.6,1803.4,0.86901861]
[1680521536753,4.0388,1803.8,1803.4,1.70001861]
[1680521537057,4.0388,1803.8,1803.6,1.109]
[1680521537058,3.2078,1803.8,1803.6,1.109]
[1680521539344,3.2078,1803.8,1803.5,2.109]
[1680521539953,4.3168,1804.0,1803.5,2.109]
[1680521540953,4.3168,1804.0,1803.5,5.3168]
[1680521541748,1.109,1804.0,1803.5,5.3168]
[1680521542061,1.109,1803.8,1803.5,4.2078]
[1680521543860,1.109,1803.8,1803.7,3.2078]
[1680521546259,1.70277948,1803.8,1803.7,3.2078]
[1680521548170,1.70277948,1803.8,1803.5,4.7499803]
[1680521548461,1.70277948,1803.8,1802.9,3.2078]
[1680521548462,5.0,1803.3,1802.9,3.2078]
[1680521548763,1.109,1803.0,1802.9,3.2078]
[1680521549058,1.109,1803.2,1802.9,3.2078]
[1680521549262,4.316,1803.7,1803.1,3.2078]
[1680521549263,1.101,1803.5,1803.1,3.2078]
[1680521549657,1.109,1803.6,1803.3,3.2078]
[1680521550965,0.65464095,1803.5,1803.3,3.2078]
[1680521551155,1.109,1803.9,1803.4,1.106]
[1680521551356,1.65463972,1803.8,1803.5,3.2078]
[1680521551555,1.106,1803.7,1803.5,3.2078]
[1680521551863,1.106,1803.7,1803.3,3.2078]
[1680521552060,1.106,1803.7,1803.4,1.0]
[1680521552459,1.106,1803.7,1803.3,4.2078]
[1680521552667,1.106,1803.7,1803.5,3.2078]
[1680521553563,1.106,1803.7,1803.2,5.86893674]
[1680521554863,1.106,1803.7,1803.2,4.86893674]
[1680521555055,2.106,1803.7,1803.2,4.86893674]
[1680521555262,1.101,1803.5,1803.2,3.76093674]
[1680521555461,1.101,1803.5,1803.2,0.55313674]
[1680521555660,1.101,1803.5,1803.0,4.3098]
[1680521555966,1.101,1803.5,1803.2,3.2078]
[1680521556470,1.101,1803.5,1803.0,4.3098]
[1680521557163,1.101,1803.5,1803.0,5.3098]
[1680521557363,1.101,1803.5,1803.0,4.3098]
[1680521559072,1.101,1803.5,1803.2,3.2078]
[1680521559969,1.106,1803.7,1803.4,3.2078]
[1680521561171,0.72503099,1803.6,1803.4,3.2078]
[1680521567172,0.72503099,1803.6,1803.5,2.109]
[1680521567666,1.109,1803.9,1803.5,2.109]
[1680521567871,1.109,1803.9,1803.6,3.2078]
[1680521569679,1.109,1803.9,1803.5,1.109]
[1680521569971,4.3138,1803.8,1803.3,4.3168]
[1680521570163,1.0,1803.7,1803.3,4.3168]
[1680521570366,1.106,1803.8,1803.3,4.3168]
[1680521570367,2.106,1803.8,1803.3,4.3168]
[1680521570573,2.106,1803.8,1803.5,3.2078]
[1680521570776,1.106,1803.8,1803.5,3.2078]
[1680521571573,1.106,1803.8,1803.4,40.8]
[1680521572163,4.2078,1803.9,1803.4,40.8]
[1680521572164,1.109,1803.6,1803.4,40.8]
[1680521572871,1.109,1803.6,1803.2,0.56494171]
[1680521573067,1.109,1803.4,1803.1,3.2078]
[1680521574377,1.109,1803.4,1802.9,5.73907915]
[1680521574780,1.109,1803.4,1802.9,6.73907915]
[1680521575078,1.109,1803.4,1803.1,3.2078]
[1680521576382,0.78927758,1803.3,1803.1,4.3098]
[1680521576679,1.0,1803.5,1803.1,4.3098]
[1680521576877,0.78927567,1803.4,1803.1,4.3098]
[1680521577676,1.109,1803.6,1803.1,5.17881861]
[1680521579678,1.68257685,1803.6,1803.2,0.86901861]
[1680521580085,1.109,1803.6,1803.2,0.86901861]
[1680521580387,1.101,1803.4,1803.2,0.86901861]
[1680521584780,2.101,1803.4,1803.2,0.86901861]
[1680521585379,1.101,1803.4,1803.2,0.86901861]
[1680521588896,1.67457685,1803.6,1803.2,0.86901861]
[1680521589991,1.67457685,1803.6,1803.3,0.86901861]
[1680521590197,1.67457685,1803.6,1803.2,0.86901861]
[1680521590883,1.67457685,1803.6,1803.3,0.86901861]
[1680521591296,0.78924028,1803.5,1803.3,0.86901861]
[1680521591488,1.78924028,1803.5,1803.3,0.86901861]
[1680521591691,0.78924028,1803.5,1803.3,0.86901861]
[1680521592095,2.89824028,1803.5,1803.3,0.86901861]
[1680521592397,1.89824028,1803.5,1803.3,0.86901861]
[1680521592899,2.47181713,1803.5,1803.3,0.86901861]
[1680521596005,2.47181713,1803.5,1803.4,0.86901861]
[1680521599905,1.89824028,1803.5,1803.4,0.86901861]
[1680521601309,2.47181713,1803.5,1803.4,0.86901861]
[1680521601709,1.89824028,1803.5,1803.4,0.86901861]
[1680521602212,0.78924028,1803.5,1803.4,0.86901861]
[1680521603214,1.36281713,1803.5,1803.4,0.86642462]
[1680521604203,0.78924028,1803.5,1803.4,0.86642462]
[1680521605815,1.36281713,1803.5,1803.4,0.86642462]
[1680521606013,0.78924028,1803.5,1803.4,0.86642462]
[1680521608217,0.49427039,1803.5,1803.4,1.97542462]
[1680521608422,0.49427039,1803.5,1803.4,2.95513707]
[1680521608618,0.49427039,1803.5,1803.4,3.95513707]
[1680521608923,0.57357685,1803.7,1803.4,3.95513707]
[1680521609119,0.57357685,1803.7,1803.5,5.3138]
[1680521609326,0.46405731,1803.6,1803.5,5.3138]
[1680521609525,0.57357685,1803.7,1803.5,5.3138]
[1680521609725,0.57357685,1803.7,1803.6,1.0]
[1680521611519,0.57357685,1803.7,1803.5,5.3138]
[1680521611720,0.57357685,1803.8,1803.6,1.0]
[1680521611923,0.57357685,1803.8,1803.7,3.2078]
[1680521612322,1.03762578,1803.8,1803.7,3.2078]
[1680521615231,0.46404893,1803.8,1803.7,3.2078]
[1680521615834,0.46404893,1803.8,1803.7,4.3098]
[1680521616026,0.57357685,1804.0,1803.7,6.46833958]
[1680521616223,0.57357685,1804.0,1803.9,3.2078]
[1680521617332,0.57357685,1804.0,1803.9,4.2078]
[1680521617534,1.44011724,1804.1,1803.9,4.2078]
[1680521617726,0.57357685,1804.0,1803.9,4.2078]
[1680521618331,1.44011724,1804.1,1803.9,4.2078]
[1680521619227,0.57357685,1804.1,1803.9,3.2078]
[1680521621239,0.30420801,1804.0,1803.9,3.2078]
[1680521623335,4.34576392,1804.2,1803.9,3.2078]
[1680521623737,3.47922353,1804.2,1803.9,3.2078]
[1680521624329,4.34576392,1804.2,1803.9,3.2078]
[1680521624525,0.57357685,1804.1,1803.7,1.109]
[1680521624730,1.109,1804.0,1803.6,5.87142166]
[1680521628131,1.109,1804.0,1803.6,4.87142166]
[1680521628332,1.109,1803.9,1803.6,3.2078]
[1680521628530,1.0,1803.8,1803.6,3.2078]
[1680521628936,1.0,1803.8,1803.4,6.02818531]
[1680521629142,1.109,1803.9,1803.4,6.02818531]
[1680521629534,0.29602742,1803.8,1803.4,6.02818531]
[1680521629739,1.109,1803.9,1803.4,6.02818531]
[1680521630034,0.29177844,1803.8,1803.4,6.02818531]
[1680521630236,1.109,1803.9,1803.4,6.02818531]
[1680521630635,0.3376682,1803.8,1803.4,6.02818531]
[1680521630836,1.109,1803.9,1803.4,6.02818531]
[1680521631037,0.33766678,1803.7,1803.4,6.02818531]
[1680521631236,1.0,1803.8,1803.4,6.02818531]
[1680521631437,1.109,1803.9,1803.6,3.2078]
[1680521631839,0.33766454,1803.8,1803.6,3.2078]
[1680521632144,1.109,1803.9,1803.6,3.2078]
[1680521632336,0.33766297,1803.7,1803.6,3.2078]
[1680521632541,1.0,1803.8,1803.6,3.2078]
[1680521633243,1.109,1803.9,1803.6,3.2078]
[1680521633648,0.33765918,1803.8,1803.6,3.2078]
[1680521633844,0.33765918,1803.8,1803.4,5.47433958]
[1680521634050,1.33765918,1803.8,1803.4,5.47433958]
[1680521634245,0.33765918,1803.8,1803.4,5.47433958]
[1680521638553,0.33765918,1803.8,1803.6,3.2078]
[1680521641954,0.33765918,1803.8,1803.6,4.3168]
[1680521642851,1.44011724,1804.0,1803.6,4.3168]
[1680521643050,0.3842009,1803.7,1803.6,4.3168]
[1680521643349,1.44011724,1804.0,1803.6,4.3168]
[1680521643550,1.44011724,1804.0,1803.8,3.2078]
[1680521644057,0.57357685,1803.9,1803.8,3.2078]
[1680521644848,1.44011724,1804.0,1803.8,3.2078]
[1680521645048,0.57357685,1803.9,1803.8,3.2078]
[1680521651271,0.95775369,1803.9,1803.8,3.2078]
[1680521651969,0.38417684,1803.9,1803.8,3.2078]
[1680521653872,0.38417684,1803.9,1803.8,5.3168]
[1680521654171,1.44011724,1804.1,1803.9,1.0]
[1680521654375,2.67240822,1804.2,1804.0,3.2078]
[1680521655171,1.80586783,1804.2,1804.0,4.3158]
[1680521655671,1.80586783,1804.2,1804.1,1.0]
[1680521655872,1.23229098,1804.2,1804.1,1.0]
[1680521656472,1.23229098,1804.2,1804.1,0.58064282]
[1680521656875,1.23229098,1804.2,1804.1,1.0]
[1680521659273,0.86654039,1804.5,1804.1,2.109]
[1680521659473,0.86654039,1804.6,1804.4,4.3158]
[1680521661171,0.86654039,1804.6,1804.5,1.102]
[1680521661375,0.86654039,1804.8,1804.5,1.20792232]
[1680521661569,0.86654039,1804.8,1804.6,4.3168]
[1680521661771,0.86654039,1804.8,1804.7,0.22253817]
[1680521661970,0.86654039,1804.8,1804.6,4.3168]
[1680521663076,0.31511041,1804.8,1804.7,1.106]
[1680521663280,0.86416311,1805.1,1804.7,2.211]
[1680521663481,0.86416311,1805.1,1805.0,1.106]
[1680521663686,0.86416311,1805.2,1805.0,1.106]
[1680521665472,4.07196311,1805.3,1805.0,1.106]
[1680521666477,4.07196311,1805.3,1805.1,0.35773722]
[1680521667482,4.3168,1805.3,1804.9,3.2078]
[1680521668070,1.109,1805.3,1804.9,3.2078]
[1680521668878,1.106,1805.1,1804.9,3.2078]
[1680521669075,1.106,1805.1,1804.7,3.2078]
[1680521669276,1.106,1805.1,1804.7,4.2078]
[1680521669471,1.106,1805.1,1804.7,3.2078]
[1680521669990,4.3138,1805.1,1804.6,1.109]
[1680521670485,1.0,1805.0,1804.7,3.2078]
[1680521670781,1.0,1805.0,1804.6,1.109]
[1680521671787,4.3138,1805.1,1804.7,3.2078]
[1680521671979,1.0,1805.0,1804.6,1.109]
[1680521672185,2.109,1805.0,1804.5,4.3168]
[1680521673984,1.109,1805.0,1804.5,4.3168]
[1680521675982,1.0,1804.9,1804.5,4.3168]
[1680521678894,2.109,1805.0,1804.5,4.3168]
[1680521679496,1.109,1804.7,1804.3,16.9328]
[1680521679788,1.109,1804.7,1804.3,3.2078]
[1680521679789,1.31768212,1804.6,1804.3,3.2078]
[1680521679996,2.42368212,1804.6,1804.1,4.3098]
[1680521680298,2.42368212,1804.6,1804.3,3.2078]
[1680521680715,1.42368212,1804.6,1804.3,3.2078]
[1680521681195,1.42368212,1804.6,1804.1,1.102]
[1680521681395,1.42368212,1804.6,1804.2,3.2078]
[1680521681595,1.0,1804.5,1804.2,3.2078]
[1680521681796,1.33791002,1804.5,1804.2,3.2078]
[1680521681991,2.43891002,1804.5,1804.2,3.2078]
[1680521682497,1.43891002,1804.5,1804.2,3.2078]
[1680521685400,1.109,1804.4,1804.2,3.2078]
[1680521685701,1.109,1804.4,1803.9,4.3168]
[1680521686095,1.109,1804.4,1804.1,3.2078]
[1680521686295,1.109,1804.4,1803.9,4.3168]
[1680521686499,1.109,1804.2,1803.9,3.2078]
[1680521692102,1.109,1804.2,1804.1,3.2078]
[1680521692298,1.109,1804.2,1803.9,3.2078]
[1680521692709,1.109,1804.2,1804.1,3.2078]
[1680521692905,1.109,1804.2,1803.9,4.2078]
[1680521693307,1.109,1804.2,1803.9,3.2078]
[1680521693904,1.109,1804.4,1803.9,4.3168]
[1680521694105,0.33791002,1804.5,1804.3,5.4178]
[1680521694412,2.82246919,1805.0,1804.4,1.102]
[1680521694413,0.86416311,1805.0,1804.4,1.102]
[1680521694609,1.97316311,1805.0,1804.4,1.102]
[1680521694814,4.2078,1804.9,1804.5,3.2078]
[1680521695113,1.0,1804.8,1804.5,3.2078]
[1680521695518,4.2078,1804.9,1804.5,3.2078]
[1680521696111,0.11809561,1804.8,1804.5,3.2078]
[1680521696307,2.109,1804.8,1804.3,4.89021313]
[1680521697613,1.109,1804.8,1804.3,4.89021313]
[1680521698511,1.109,1804.8,1804.3,5.89021313]
[1680521698711,1.109,1804.8,1804.5,3.2078]
[1680521701617,1.65871527,1804.9,1804.5,4.3138]
[1680521701812,1.101,1804.9,1804.5,4.3138]
[1680521702121,1.97316311,1805.0,1804.6,1.102]
[1680521702319,1.97316311,1805.0,1804.7,3.2078]
[1680521706114,0.11952786,1804.9,1804.7,3.2078]
[1680521706421,0.11952786,1804.9,1804.8,1.109]
[1680521708217,2.49701587,1805.1,1804.8,1.109]
[1680521708415,2.49701587,1805.1,1804.9,3.2078]
[1680521709325,0.86416311,1805.0,1804.6,4.3168]
[1680521709510,1.86416311,1805.0,1804.6,4.3168]
[1680521709709,0.86416311,1805.0,1804.7,1.0]
[1680521709909,0.86416311,1805.0,1804.6,1.109]
[1680521710114,0.86416311,1805.0,1804.7,3.2078]
[1680521712125,0.11950337,1804.9,1804.7,3.2078]
[1680521717922,0.11950337,1804.9,1804.8,1.108]
[1680521718235,0.86416311,1805.1,1804.8,1.16742688]
[1680521718429,0.86416311,1805.2,1805.0,2.217]
[1680521718622,0.86416311,1805.4,1805.1,4.3168]
[1680521718925,0.86416311,1805.5,1805.3,1.102]
[1680521719124,0.86416311,1805.4,1805.3,1.102]
[1680521721820,1.86416311,1805.5,1805.3,1.102]
[1680521722015,0.86416311,1805.5,1805.2,1.109]
[1680521722421,0.86416311,1805.5,1805.2,2.109]
[1680521722624,0.86416311,1805.5,1805.2,1.109]
[1680521723932,1.86416311,1805.5,1805.2,1.109]
[1680521724229,0.86416311,1805.5,1805.2,1.109]
[1680521724726,2.97316311,1805.5,1805.1,4.3098]
[1680521725227,1.97316311,1805.5,1805.1,4.3098]
[1680521726834,1.97316311,1805.5,1805.2,0.14727365]
[1680521727129,1.97316311,1805.5,1805.1,4.3098]
[1680521728628,1.97316311,1805.5,1805.3,3.2078]
[1680521728928,1.109,1805.5,1805.1,4.3098]
[1680521729428,1.109,1805.5,1805.3,3.20149554]
[1680521732033,1.97016311,1805.6,1805.3,3.20149554]
[1680521735338,0.86416311,1805.5,1805.3,3.20149554]
[1680521740036,0.86416311,1805.4,1805.3,3.20149554]
[1680521741846,0.86416311,1805.4,1805.3,3.30668323]
[1680521743949,0.86416311,1805.5,1805.3,3.30668323]
[1680521744348,0.86416311,1805.4,1805.3,4.41468323]
[1680521744647,0.86416311,1805.5,1805.3,4.41468323]
[1680521752455,0.86416311,1805.4,1805.3,4.41468323]
[1680521754663,0.86416311,1805.4,1805.3,1.21318769]
[1680521755460,0.86416311,1805.4,1805.3,4.42098769]
[1680521756156,0.86416311,1805.5,1805.3,4.42098769]
[1680521756360,0.86416311,1805.4,1805.3,4.42098769]
[1680521757656,0.58173752,1805.4,1805.3,4.42098769]
[1680521757861,1.98814232,1805.7,1805.3,4.60303979]
[1680521757862,1.15565806,1805.6,1805.3,4.60303979]
[1680521758066,1.69894748,1805.7,1805.5,4.3168]
[1680521758376,1.15565806,1805.7,1805.5,4.3168]
[1680521758572,1.15565806,1805.7,1805.5,1.109]
[1680521758865,1.15565806,1805.6,1805.5,4.3168]
[1680521759071,1.15565806,1805.7,1805.5,4.3168]
[1680521761468,1.15565806,1805.7,1805.5,3.8228]
[1680521762469,1.15565806,1805.6,1805.5,3.8228]
[1680521764577,1.15565806,1805.6,1805.5,4.40321313]
[1680521764782,1.15565806,1805.6,1805.5,5.40321313]
[1680521765068,1.15565806,1805.7,1805.5,4.8228]
[1680521765269,1.15565806,1805.7,1805.6,1.109]
[1680521765475,1.15565806,1805.7,1805.6,2.109]
[1680521767973,1.15575039,1805.8,1805.7,1.0]
[1680521768172,1.0,1806.1,1805.8,1.109]
[1680521768476,5.92946324,1806.2,1806.1,0.00383821]
[1680521768672,7.66546034,1806.2,1806.1,0.00383821]
[1680521768872,6.04394097,1806.2,1806.1,0.00383821]
[1680521769972,1.11447773,1806.2,1806.1,0.00383821]
[1680521770171,2.83614097,1806.2,1806.1,0.00383821]
[1680521770879,1.11447773,1806.2,1806.1,0.00383821]
[1680521771081,2.7410206,1806.2,1806.1,0.00383821]
[1680521771278,1.11447773,1806.2,1806.1,0.00383821]
[1680521772073,1.11447773,1806.2,1806.1,0.39803112]
[1680521779574,5.43127773,1806.2,1806.1,0.39803112]
[1680521782086,5.15327773,1806.2,1806.1,0.39803112]
[1680521782586,4.15327773,1806.2,1806.1,0.00383821]
[1680521782783,0.831,1806.2,1806.1,0.39385438]
[1680521783087,0.831,1806.2,1806.1,0.00383821]
[1680521783286,2.63932268,1806.3,1806.1,0.00383821]
[1680521784090,1.63932268,1806.3,1806.1,0.00383821]
[1680521784390,6.13631261,1806.4,1806.1,0.00383821]
[1680521784592,0.11446613,1806.3,1806.1,0.00383821]
[1680521784784,1.11446613,1806.3,1806.1,0.00383821]
[1680521784984,1.0,1806.3,1806.1,0.00383821]
[1680521786993,1.0,1806.3,1806.2,0.3900397]
[1680521787193,1.11446837,1806.3,1806.1,0.00383821]
[1680521787389,1.0,1806.3,1806.1,0.00383821]
[1680521787790,1.4426527,1806.2,1806.1,0.00383821]
[1680521788288,1.55712199,1806.2,1806.1,0.00383821]
[1680521788494,2.2696527,1806.2,1806.1,0.00383821]
[1680521789697,2.38412183,1806.2,1806.1,0.00383821]
[1680521790098,5.59192183,1806.2,1806.1,0.00383821]
[1680521794592,1.0,1806.1,1805.5,1.41141313]